fUSD/lending_fUSD_20250206
["ID","MTS","AMOUNT","RATE_DAILY","PERIOD"]
[351876201,1738827075113,-874.0,0.00020054,2]
[351876202,1738827075123,-500.0,0.00020071,2]
[351876203,1738827075132,-400.0,0.00020089,2]
[351876204,1738827075142,-500.0,0.00020098,3]
[351876205,1738827075151,-500.0,0.00020098,3]
[351876206,1738827075161,-500.0,0.00020098,3]
[351876207,1738827075170,-500.0,0.00020098,3]
[351876208,1738827075179,-500.0,0.00020098,3]
[351876209,1738827075189,-500.0,0.00020098,3]
[351876210,1738827075199,-500.0,0.00020098,3]
[351876211,1738827075209,-500.0,0.00020098,3]
[351876212,1738827075219,-500.0,0.00020098,3]
[351876213,1738827075231,-500.0,0.00020098,3]
[351876214,1738827075240,-530.96,0.00020098,3]
[351876215,1738827075250,-500.0,0.00020098,3]
[351876216,1738827075260,-500.0,0.00020098,3]
[351876217,1738827075269,-500.0,0.00020098,2]
[351876218,1738827075278,-500.0,0.00020098,3]
[351876219,1738827075288,-500.0,0.00020098,3]
[351876220,1738827075297,-500.0,0.00020098,3]
[351876221,1738827075306,-500.0,0.00020098,3]
[351876222,1738827075317,-500.0,0.00020098,3]
[351876223,1738827075326,-500.0,0.00020098,3]
[351876224,1738827075335,-500.0,0.00020098,3]
[351876225,1738827075345,-500.0,0.00020098,3]
[351876226,1738827075355,-500.0,0.00020098,3]
[351876227,1738827075365,-500.0,0.00020098,3]
[351876228,1738827075374,-500.0,0.00020098,3]
[351876229,1738827075384,-500.0,0.00020098,3]
[351876230,1738827075393,-500.0,0.00020098,3]
[351876231,1738827075403,-500.0,0.00020098,3]
[351876232,1738827075413,-500.0,0.00020098,3]
[351876233,1738827075422,-500.0,0.00020098,3]
[351876234,1738827075433,-500.0,0.00020098,3]
[351876235,1738827075442,-500.0,0.00020098,3]
[351876236,1738827075451,-500.0,0.00020098,3]
[351876237,1738827075461,-500.0,0.00020098,3]
[351876238,1738827075470,-500.0,0.00020098,3]
[351876239,1738827075479,-500.0,0.00020098,3]
[351876240,1738827075488,-500.0,0.00020098,3]
[351876241,1738827075497,-500.0,0.00020098,3]
[351876242,1738827075506,-500.0,0.00020098,3]
[351876243,1738827075515,-500.0,0.00020098,3]
[351876244,1738827075524,-500.0,0.00020098,3]
[351876245,1738827075534,-500.0,0.00020098,3]
[351876246,1738827075543,-500.0,0.00020098,3]
[351876247,1738827075553,-500.0,0.00020098,3]
[351876248,1738827075563,-500.0,0.00020098,3]
[351876249,1738827075572,-500.0,0.00020098,3]
[351876250,1738827075582,-500.0,0.00020098,3]
[351876251,1738827075592,-500.0,0.00020098,3]
[351876252,1738827075602,-500.0,0.00020098,3]
[351876253,1738827075612,-500.0,0.00020098,3]
[351876254,1738827075622,-500.0,0.00020098,3]
[351876255,1738827075632,-500.0,0.00020098,3]
[351876256,1738827075641,-500.0,0.00020098,3]
[351876257,1738827075652,-500.0,0.00020098,3]
[351876258,1738827075662,-500.0,0.00020098,3]
[351876259,1738827075671,-500.0,0.00020098,3]
[351876260,1738827075681,-614.12,0.00020098,3]
[351876261,1738827075693,-702.98,0.00020098,3]
[351876262,1738827075703,-500.0,0.00020098,3]
[351876263,1738827075712,-500.0,0.00020098,3]
[351876264,1738827075722,-500.0,0.00020098,3]
[351876265,1738827075732,-500.0,0.00020098,3]
[351876266,1738827075741,-500.0,0.00020098,3]
[351876267,1738827075750,-500.0,0.00020098,3]
[351876268,1738827075759,-500.0,0.00020098,3]
[351876269,1738827075770,-500.0,0.00020098,3]
[351876270,1738827075780,-500.0,0.00020098,3]
[351876271,1738827075789,-520.49,0.00020098,3]
[351876272,1738827075798,-500.0,0.00020098,3]
[351876273,1738827075807,-535.9,0.00020098,3]
[351876274,1738827075816,-500.0,0.00020098,3]
[351876275,1738827075825,-500.0,0.00020098,3]
[351876276,1738827075835,-500.0,0.00020098,3]
[351876277,1738827075844,-500.0,0.00020098,3]
[351876278,1738827075853,-500.0,0.00020098,3]
[351876279,1738827075863,-500.0,0.00020098,3]
[351876280,1738827075874,-500.0,0.00020098,3]
[351876281,1738827075884,-519.33,0.00020098,3]
[351876282,1738827075893,-500.0,0.00020098,3]
[351876283,1738827075912,-669.55,0.00020098,3]
[351876284,1738827075921,-500.0,0.00020098,3]
[351876285,1738827075931,-961.22,0.00020098,3]
[351876286,1738827075940,-500.0,0.00020098,3]
[351876287,1738827075950,-500.0,0.00020098,3]
[351876288,1738827075960,-500.0,0.00020098,3]
[351876289,1738827075969,-946.21,0.00020098,3]
[351876290,1738827075979,-500.0,0.00020098,3]
[351876291,1738827075988,-500.0,0.00020098,3]
[351876292,1738827075998,-500.0,0.00020098,3]
[351876293,1738827076008,-500.0,0.00020098,3]
[351876294,1738827076017,-500.0,0.00020098,3]
[351876295,1738827076026,-500.0,0.00020098,3]
[351876296,1738827076036,-500.0,0.00020098,3]
[351876297,1738827076045,-513.57,0.00020098,3]
[351876298,1738827076055,-850.7,0.00020098,3]
[351876299,1738827076064,-500.0,0.00020098,3]
[351876300,1738827076074,-500.0,0.00020098,3]
[351876301,1738827076084,-678.19,0.00020098,3]
[351876302,1738827076094,-500.0,0.00020098,3]
[351876303,1738827076195,-500.0,0.00020098,3]
[351876304,1738827076215,-500.0,0.00020098,3]
[351876305,1738827076226,-500.0,0.00020098,3]
[351876306,1738827076236,-510.36,0.00020098,3]
[351876307,1738827076247,-652.86,0.00020098,3]
[351876308,1738827076256,-500.0,0.00020098,3]
[351876309,1738827076266,-500.0,0.00020098,3]
[351876310,1738827076276,-500.0,0.00020098,3]
[351876311,1738827076285,-500.0,0.00020098,3]
[351876312,1738827076294,-500.0,0.00020098,3]
[351876313,1738827076304,-500.0,0.00020098,3]
[351876314,1738827076313,-500.0,0.00020098,3]
[351876315,1738827076323,-716.36,0.00020098,3]
[351876316,1738827076332,-500.0,0.00020098,3]
[351876317,1738827076342,-500.0,0.00020098,3]
[351876318,1738827076351,-500.0,0.00020098,3]
[351876319,1738827076361,-500.0,0.00020098,3]
[351876320,1738827076370,-500.0,0.00020098,3]
[351876321,1738827076379,-500.0,0.00020098,3]
[351876322,1738827076389,-500.0,0.00020098,3]
[351876323,1738827076399,-935.42,0.00020098,3]
[351876324,1738827076410,-988.15,0.00020098,3]
[351876325,1738827076419,-500.0,0.00020098,3]
[351876326,1738827076428,-501.81,0.00020098,3]
[351876327,1738827076438,-920.07,0.00020098,3]
[351876328,1738827076447,-500.0,0.00020098,3]
[351876329,1738827076456,-500.0,0.00020098,3]
[351876330,1738827076466,-500.0,0.00020098,3]
[351876331,1738827076476,-1398.38,0.00020098,3]
[351876332,1738827076486,-500.0,0.00020098,3]
[351876333,1738827076495,-500.0,0.00020098,3]
[351876334,1738827076505,-725.86,0.00020098,3]
[351876335,1738827076514,-500.0,0.00020098,3]
[351876336,1738827076524,-1034.52,0.00020098,3]
[351876337,1738827076533,-576.36,0.00020098,3]
[351876338,1738827076543,-824.09,0.00020098,3]
[351876339,1738827076552,-500.0,0.00020098,3]
[351876340,1738827076562,-500.0,0.00020098,3]
[351876341,1738827076572,-500.0,0.00020098,3]
[351876342,1738827076582,-500.0,0.00020098,3]
[351876343,1738827076592,-644.88,0.00020098,3]
[351876344,1738827076602,-500.0,0.00020098,3]
[351876345,1738827076611,-150.0,0.000201,2]
[351876346,1738827076620,-428.15,0.000201,31]
[351876347,1738827076629,-428.15,0.000201,31]
[351876348,1738827076639,-428.15,0.000201,31]
[351876349,1738827076649,-428.15,0.000201,31]
[351876350,1738827076659,-428.15,0.000201,31]
[351876351,1738827076669,-428.15,0.000201,31]
[351876352,1738827076678,-428.15,0.000201,31]
[351876353,1738827076688,-428.15,0.000201,31]
[351876354,1738827076700,-428.15,0.000201,31]
[351876355,1738827076709,-428.15,0.000201,31]
[351876356,1738827076719,-428.15,0.000201,31]
[351876357,1738827076728,-428.15,0.000201,31]
[351876358,1738827076738,-428.15,0.000201,31]
[351876359,1738827076748,-428.15,0.000201,31]
[351876360,1738827076758,-428.15,0.000201,31]
[351876361,1738827076770,-428.15,0.000201,31]
[351876362,1738827076781,-500.0,0.00020109,3]
[351876363,1738827076790,-500.0,0.00020109,3]
[351876364,1738827076799,-500.0,0.00020109,3]
[351876365,1738827076808,-500.0,0.00020109,3]
[351876366,1738827076818,-373.43,0.00020109,3]
[351876367,1738827076827,-500.0,0.00020109,3]
[351876368,1738827076836,-500.0,0.00020109,3]
[351876369,1738827076846,-500.0,0.00020109,3]
[351876370,1738827076856,-500.0,0.00020109,3]
[351876371,1738827076866,-500.0,0.00020109,3]
[351876372,1738827076876,-500.0,0.00020109,3]
[351876373,1738827076885,-523.93,0.00020109,3]
[351876374,1738827076895,-500.0,0.00020109,3]
[351876375,1738827076905,-500.0,0.00020109,3]
[351876376,1738827076935,-500.0,0.00020109,3]
[351876377,1738827076945,-500.0,0.00020109,3]
[351876378,1738827076955,-500.0,0.00020109,3]
[351876379,1738827076965,-500.0,0.00020109,3]
[351876380,1738827076974,-500.0,0.00020109,3]
[351876381,1738827076984,-593.24,0.00020109,3]
[351876382,1738827076995,-500.0,0.00020109,3]
[351876383,1738827077005,-500.0,0.00020109,3]
[351876384,1738827077014,-500.0,0.00020109,3]
[351876385,1738827077024,-500.0,0.00020109,3]
[351876386,1738827077033,-500.0,0.00020109,3]
[351876387,1738827077042,-500.0,0.00020109,3]
[351876388,1738827077052,-500.0,0.00020109,3]
[351876389,1738827077064,-500.0,0.00020109,3]
[351876390,1738827077074,-500.0,0.00020109,3]
[351876391,1738827077083,-500.0,0.00020109,3]
[351876392,1738827077093,-500.0,0.00020109,3]
[351876393,1738827077102,-500.0,0.00020109,3]
[351876394,1738827077112,-500.0,0.00020109,3]
[351876395,1738827077122,-500.0,0.00020109,3]
[351876396,1738827077131,-577.66,0.00020109,2]
[351876397,1738827077141,-500.0,0.00020109,3]
[351876398,1738827077151,-500.0,0.00020109,3]
[351876399,1738827077161,-500.0,0.00020109,3]
[351876400,1738827077171,-500.0,0.00020109,3]
[351876401,1738827077181,-513.14,0.00020109,3]
[351876402,1738827077191,-655.78,0.00020109,3]
[351876403,1738827077200,-500.0,0.00020109,3]
[351876404,1738827077211,-153.36640371,0.00020109,3]
[351876405,1738827080406,396.0,0.0001411,60]
[351876406,1738827081472,-1125.25662742,0.00019999,5]
[351876407,1738827081497,-1125.25662743,0.00019999,5]
[351876408,1738827081522,-500.0,0.0002,3]
[351876409,1738827081546,-500.0,0.0002,3]
[351876410,1738827081572,-608.42,0.0002,3]
[351876411,1738827081597,-500.0,0.0002,3]
[351876412,1738827081621,-500.0,0.0002,3]
[351876413,1738827081646,-500.0,0.0002,3]
[351876414,1738827081672,-500.0,0.0002,3]
[351876415,1738827081699,-500.0,0.0002,3]
[351876416,1738827081724,-500.0,0.0002,3]
[351876417,1738827081750,-341.06674515,0.0002,3]
[351876418,1738827081985,161.770578,9.881e-05,2]
[351876419,1738827113877,158.814172,9.881e-05,2]
[351876420,1738827114668,158.814172,0.00010155,2]
[351876421,1738827115006,158.814172,0.00010566,2]
[351876422,1738827115330,158.814172,0.0001084,2]
[351876423,1738827115683,158.814172,0.00011251,2]
[351876427,1738827127449,154.332457,9.881e-05,2]
[351876428,1738827127764,154.332457,0.00010018,2]
[351876429,1738827128083,154.332457,0.00010155,2]
[351876430,1738827128391,154.332457,0.00010292,2]
[351876431,1738827128711,154.332457,0.00010566,2]
[351876432,1738827129023,154.332457,0.00010703,2]
[351876433,1738827129345,154.332457,0.0001084,2]
[351876434,1738827129665,154.332457,0.00010977,2]
[351876435,1738827129996,154.332457,0.00011114,2]
[351876436,1738827130306,154.332457,0.00011251,2]
[351876442,1738827174573,153.171161,9.881e-05,2]
[351876443,1738827174897,153.171161,0.00010018,2]
[351876444,1738827175216,153.171161,0.00010155,2]
[351876445,1738827175546,153.171161,0.00010292,2]
[351876446,1738827176079,153.171161,0.00010429,2]
[351876447,1738827176209,153.171161,0.00010566,2]
[351876448,1738827176543,153.171161,0.00010703,2]
[351876449,1738827177012,153.171161,0.0001084,2]
[351876450,1738827177363,153.171161,0.00010977,2]
[351876451,1738827177679,153.171161,0.00011114,2]
[351876452,1738827177991,153.171161,0.00011251,2]
[351876453,1738827178292,153.171161,0.00011388,2]
[351876454,1738827188789,154.332457,9.881e-05,2]
[351876455,1738827189080,154.332457,0.00010018,2]
[351876456,1738827189409,154.332457,0.00010155,2]
[351876457,1738827189712,154.332457,0.00010429,2]
[351876458,1738827190480,154.332457,0.00010566,2]
[351876459,1738827190545,154.332457,0.00010703,2]
[351876460,1738827191365,154.332457,0.0001084,2]
[351876461,1738827191673,154.332457,0.00010977,2]
[351876462,1738827191992,154.332457,0.00011251,2]
[351876463,1738827192315,154.332457,0.00011388,2]
[351876464,1738827246951,1233.79841528,0.0002,120]
[351876465,1738827293333,153.171161,9.881e-05,2]
[351876466,1738827293887,153.171161,0.00010292,2]
[351876467,1738827293936,153.171161,0.00010703,2]
[351876468,1738827294264,153.171161,0.00011114,2]
[351876469,1738827308747,151.672468,9.881e-05,2]
[351876470,1738827309057,151.672468,0.00010018,2]
[351876471,1738827309832,151.672468,0.00010292,2]
[351876472,1738827310146,151.672468,0.00010429,2]
[351876473,1738827310473,151.672468,0.00010703,2]
[351876474,1738827311722,151.672468,0.0001084,2]
[351876475,1738827313348,151.672468,0.00011114,2]
[351876476,1738827313686,151.672468,0.00011251,2]
[351876477,1738827353693,160.61278,9.881e-05,2]
[351876478,1738827354019,160.61278,0.00010292,2]
[351876479,1738827354942,160.61278,0.00010703,2]
[351876480,1738827355300,160.61278,0.00011114,2]
[351876481,1738827496658,155.639737,9.881e-05,2]
[351876482,1738827533447,155.152087,9.881e-05,2]
[351876483,1738827533752,155.152087,0.00010155,2]
[351876484,1738827534080,155.152087,0.00010292,2]
[351876485,1738827534681,155.152087,0.00010429,2]
[351876486,1738827535408,155.152087,0.00010703,2]
[351876487,1738827535770,155.152087,0.00010977,2]
[351876488,1738827536066,155.152087,0.00011114,2]
[351876489,1738827536400,155.152087,0.00011251,2]
[351876490,1738827548915,153.775168,9.881e-05,2]
[351876491,1738827549265,153.775168,0.00010018,2]
[351876492,1738827549768,153.775168,0.00010155,2]
[351876493,1738827550115,153.775168,0.00010292,2]
[351876494,1738827550444,153.775168,0.00010429,2]
[351876495,1738827551128,153.775168,0.00010703,2]
[351876496,1738827551474,153.775168,0.0001084,2]
[351876497,1738827551784,153.775168,0.00010977,2]
[351876498,1738827552089,153.775168,0.00011114,2]
[351876499,1738827552394,153.775168,0.00011251,2]
[351876500,1738827552808,153.775168,0.00011388,2]
[351876501,1738827559653,155.639737,9.881e-05,2]
[351876502,1738827593686,166.117307,9.881e-05,2]
[351876503,1738827594283,166.117307,0.00010566,2]
[351876504,1738827594330,166.117307,0.00011251,2]
[351876505,1738827607219,190.49,0.0002,120]
[351876506,1738827607918,2500.0,8.851e-05,2]
[351876508,1738827661643,206.79,0.00010137,2]
[351876509,1738827774990,157.345131,9.881e-05,2]
[351876510,1738827775305,157.345131,0.00010155,2]
[351876511,1738827776118,157.345131,0.00010429,2]
[351876512,1738827776366,157.345131,0.00010566,2]
[351876513,1738827776695,157.345131,0.0001084,2]
[351876514,1738827776996,157.345131,0.00011114,2]
[351876515,1738827777301,157.345131,0.00011388,2]
[351876516,1738827789240,153.775169,9.881e-05,2]
[351876517,1738827789567,153.775169,0.00010155,2]
[351876518,1738827789945,153.775169,0.00010292,2]
[351876519,1738827790242,153.775169,0.00010566,2]
[351876520,1738827790596,153.775169,0.0001084,2]
[351876521,1738827791201,153.775169,0.00011114,2]
[351876522,1738827791397,153.775169,0.00011251,2]
[351876523,1738827890460,6489.4016,8.836e-05,2]
[351876524,1738827991175,4487.09573531,0.0002,120]
[351876525,1738828014831,157.345131,9.881e-05,2]
[351876526,1738828015143,157.345131,0.00010292,2]
[351876527,1738828015443,157.345131,0.00010703,2]
[351876528,1738828015970,157.345131,0.00010977,2]
[351876529,1738828016273,157.345131,0.00011388,2]
[351876531,1738828028769,153.775169,9.881e-05,2]
[351876532,1738828029301,153.775169,0.00010292,2]
[351876533,1738828029879,153.775169,0.00010566,2]
[351876534,1738828030198,153.775169,0.00010977,2]
[351876535,1738828030515,153.775169,0.00011251,2]
[351876576,1738828232450,-550.0,0.00013,2]
[351876577,1738828232460,-150.0,0.00014,2]
[351876578,1738828232470,-150.0,0.000143,2]
[351876579,1738828232480,-150.0,0.00015,2]
[351876580,1738828232491,-450.0,0.00015,2]
[351876581,1738828232501,-100.99707701,0.00015314,2]
[351876582,1738828232512,-49.00292299,0.00015314,2]
[351876583,1738828232522,-502.85226426,0.000155,5]
[351876584,1738828232533,-3450.0,0.000155,5]
[351876585,1738828232544,-1555.14773574,0.000155,5]
[351876586,1738828232554,-2140.11226419,0.00016813,2]
[351876587,1738828232565,-2139.23480222,0.00016813,2]
[351876588,1738828232603,-3963.04,0.00016813,2]
[351876589,1738828232615,-22763.78559001,0.00016813,2]
[351876590,1738828232624,-206.79,0.00016813,2]
[351876592,1738828232634,-500.73,0.00016949,2]
[351876594,1738828232644,-650.0,0.00017,2]
[351876596,1738828232653,-200.2,0.00017518,2]
[351876598,1738828232663,-9801.71,0.00017728,2]
[351876600,1738828232672,-150.0,0.00018197,2]
[351876602,1738828232682,-278.44435627,0.00018197,2]
[351876604,1738828232691,-273.52,0.00018216,2]
[351876606,1738828232700,-1000.0,0.00018375,2]
[351876608,1738828232709,-150.0,0.00018476,2]
[351876610,1738828232719,-28843.26820894,0.00018477,2]
[351876612,1738828232728,-241.0,0.00018561,2]
[351876614,1738828232737,-200.0,0.00018683,2]
[351876616,1738828232747,-260.34,0.00018714,2]
[351876618,1738828232757,-250.0,0.00018726,2]
[351876620,1738828232769,-163.95,0.00018739,2]
[351876622,1738828232781,-536.29,0.00018932,30]
[351876624,1738828232791,-700.0,0.00019,2]
[351876626,1738828232800,-538.89,0.00019002,2]
[351876628,1738828232810,-1180.029,0.00019178,2]
[351876630,1738828232819,-1000.0,0.00019178,7]
[351876632,1738828232828,-150.0,0.00019178,2]
[351876634,1738828232837,-1540.98094416,0.000192,7]
[351876636,1738828232849,-959.01905584,0.000192,7]
[351876638,1738828232858,-150.0,0.00019208,4]
[351876640,1738828232867,-500.73,0.00019213,2]
[351876642,1738828232877,-5000.0,0.000193,7]
[351876644,1738828232888,-14406.94549314,0.00019341,2]
[351876645,1738828232898,-2937.0,0.00019379,6]
[351876647,1738828232907,-7500.0,0.000194,7]
[351876649,1738828232916,-172.91,0.00019425,2]
[351876651,1738828232925,-1000.0,0.00019452,7]
[351876653,1738828232938,-877.72,0.00019452,2]
[351876656,1738828232947,-150.0,0.00019452,2]
[351876659,1738828232956,-413.09,0.00019452,2]
[351876662,1738828232966,-170.14,0.00019496,2]
[351876665,1738828232976,-10100.0,0.000195,7]
[351876668,1738828232985,-8645.33863729,0.00019595,2]
[351876671,1738828232995,-153.48,0.000196,2]
[351876673,1738828233005,-12600.0,0.000196,7]
[351876676,1738828233015,-150.0,0.00019683,2]
[351876679,1738828233025,-2500.0,0.000197,7]
[351876680,1738828233035,-1000.0,0.00019726,7]
[351876682,1738828233051,-14557.86058274,0.00019757,2]
[351876685,1738828233061,-1200.0,0.0001978,2]
[351876686,1738828233071,-3100.0,0.0001978,2]
[351876688,1738828233082,-2500.0,0.000198,7]
[351876690,1738828233092,-424.58696516,0.00019828,2]
[351876692,1738828233102,-413.4672373,0.0001984,2]
[351876694,1738828233112,-8655.63827793,0.00019877,2]
[351876696,1738828233122,-813.54,0.0001989,2]
[351876698,1738828233132,-13184.64933084,0.00019897,2]
[351876700,1738828233146,-2467.42927773,0.000199,2]
[351876702,1738828233156,-2467.42927773,0.000199,2]
[351876704,1738828233165,-2467.42927773,0.000199,2]
[351876706,1738828233175,-2467.42927773,0.000199,2]
[351876708,1738828233184,-2467.42927773,0.000199,2]
[351876710,1738828233193,-2467.42927773,0.000199,2]
[351876712,1738828233202,-2467.42927773,0.000199,2]
[351876714,1738828233212,-2500.0,0.000199,7]
[351876716,1738828233222,-2467.42927773,0.000199,2]
[351876718,1738828233231,-2467.42927773,0.000199,2]
[351876720,1738828233241,-2467.42927773,0.000199,2]
[351876722,1738828233250,-2467.42927773,0.000199,2]
[351876724,1738828233259,-2467.42927773,0.000199,2]
[351876725,1738828233268,-2467.42927773,0.000199,2]
[351876727,1738828233278,-2467.42927773,0.000199,2]
[351876729,1738828233288,-2467.42927773,0.000199,2]
[351876731,1738828233297,-2467.42927773,0.000199,2]
[351876733,1738828233307,-2467.42927773,0.000199,2]
[351876735,1738828233317,-2467.42927773,0.000199,2]
[351876737,1738828233326,-3244.05084258,0.000199,2]
[351876739,1738828233336,-1087.43038,0.0001991,2]
[351876741,1738828233346,-162.37,0.0001995,2]
[351876743,1738828233357,-150.0,0.0001997,2]
[351876745,1738828233366,-150.0,0.0001997,2]
[351876747,1738828233375,-150.0,0.00019971,2]
[351876749,1738828233386,-5289.0,0.00019973,2]
[351876751,1738828233397,-500.0,0.00019973,2]
[351876753,1738828233410,-150.0,0.00019976,2]
[351876755,1738828233419,-1000.0,0.00019983,2]
[351876757,1738828233429,-150.0,0.00019983,2]
[351876758,1738828233438,-260.53813755,0.00019985,2]
[351876760,1738828233448,-150.0,0.00019989,2]
[351876762,1738828233458,-813.54,0.0001999,2]
[351876764,1738828233467,-150.0,0.0001999,2]
[351876766,1738828233477,-150.0,0.0001999,2]
[351876768,1738828233487,-150.0,0.00019991,2]
[351876770,1738828233496,-150.0,0.00019997,2]
[351876772,1738828233506,-1000.0,0.00019999,2]
[351876774,1738828233516,-1000.0,0.00019999,2]
[351876776,1738828233525,-1000.0,0.00019999,2]
[351876778,1738828233535,-1000.0,0.00019999,2]
[351876780,1738828233544,-1000.0,0.00019999,2]
[351876782,1738828233553,-1000.0,0.00019999,2]
[351876784,1738828233562,-1000.0,0.00019999,2]
[351876786,1738828233571,-1000.0,0.00019999,2]
[351876788,1738828233582,-1000.0,0.00019999,2]
[351876790,1738828233591,-1000.0,0.00019999,2]
[351876792,1738828233601,-1000.0,0.00019999,2]
[351876794,1738828233610,-1000.0,0.00019999,2]
[351876796,1738828233620,-1000.0,0.00019999,2]
[351876798,1738828233630,-1000.0,0.00019999,2]
[351876800,1738828233641,-1000.0,0.00019999,2]
[351876801,1738828233651,-1000.0,0.00019999,2]
[351876803,1738828233661,-1000.0,0.00019999,2]
[351876805,1738828233671,-1000.0,0.00019999,2]
[351876807,1738828233683,-1000.0,0.00019999,2]
[351876809,1738828233693,-1000.0,0.00019999,2]
[351876811,1738828233704,-835.47397117,0.00019999,2]
[351876813,1738828233714,-150.0,0.00019999,2]
[351876815,1738828233727,-2989.0,0.00019999,17]
[351876817,1738828233736,-1268.79,0.00019999,2]
[351876819,1738828233746,-500.0,0.00019999,2]
[351876821,1738828233755,-500.0,0.00019999,2]
[351876823,1738828233766,-560.5658,0.00019999,2]
[351876825,1738828233779,-500.0,0.00019999,2]
[351876827,1738828233790,-500.0,0.00019999,2]
[351876829,1738828233800,-221.1,0.00019999,2]
[351876831,1738828233810,-326.70040233,0.00019999,2]
[351876833,1738828233821,-500.0,0.00019999,2]
[351876835,1738828233830,-264.95,0.00019999,2]
[351876837,1738828233840,-760.81060309,0.0002,2]
[351876839,1738828233851,-2135.09047095,0.0002,2]
[351876841,1738828233860,-90979.74681289,0.0002,2]
[351876842,1738828233873,-2813.51741713,0.0002,2]
[351876844,1738828233900,-2400.0,0.0002,2]
[351876900,1738828238208,-1418.52714052,0.0002,2]
[351876901,1738828238254,-1672.35964399,0.0002,2]
[351876902,1738828238467,-78279.60670826,0.0002,2]
[351876904,1738828238479,-626.99863006,0.0002,2]
[351876908,1738828238510,-921.42936603,0.0002,2]
[351876911,1738828238522,-7015.94967,0.0002,2]
[351876912,1738828238533,-11427.78538896,0.0002,2]
[351876913,1738828238544,-1207.8084644,0.0002,2]
[351877060,1738828240249,-292.560002,0.0002,2]
[351877061,1738828240338,-5404.78800001,0.0002,2]
[351877062,1738828240349,-862.7749996,0.0002,2]
[351877064,1738828240360,-6395.94200008,0.0002,2]
[351877069,1738828240406,-518.72,0.0002,2]
[351877094,1738828240629,-404.39144206,0.0002,2]
[351877368,1738828243441,-155.859116,0.0001974,7]
[351877370,1738828243450,-150.0,0.00019979,2]
[351877372,1738828243460,-9954.140884,0.0002,2]
[351877375,1738828243471,-4544.92314447,0.0002,2]
[351877377,1738828243482,-6993.79124815,0.0002,2]
[351877379,1738828243494,-1000.0,0.0002,2]
[351877382,1738828243516,-15815.55142269,0.0002,2]
[351877388,1738828243556,-1981.26433177,0.000199,2]
[351877401,1738828243679,-15557.36530015,0.000199,2]
[351877403,1738828243689,-183114.62208032,0.0002,2]
[351877406,1738828243699,-500.0,0.0002,3]
[351877408,1738828243709,-500.0,0.0002,3]
[351877410,1738828243718,-556.49700233,0.0002,3]
[351877412,1738828243728,-500.0,0.0002,3]
[351877414,1738828243738,-500.0,0.0002,3]
[351877416,1738828243748,-500.0,0.0002,3]
[351877417,1738828243758,-500.0,0.0002,3]
[351877419,1738828243767,-500.0,0.0002,3]
[351877421,1738828243777,-599.98096343,0.0002,3]
[351877423,1738828243786,-500.0,0.0002,3]